Workbook

Sheet Horiz
F6: Monthly Claims 2008
A8: Month | B8: Northern Region | C8: Southern Region | D8: Eastern Region | E8: Western Region | F8: TOTAL
A9: January | B9: 123456 | C9: 111112 | D9: 137872 | E9: 173622 | F9: =SUM(B9:E9) -> 546062
A10: February | B10: 243568 | C10: 121731 | D10: 270277 | E10: 227893 | F10: 863469
A11: March | B11: 153623 | C11: 188999 | D11: 136934 | E11: 123282 | F11: 602838
A12: April | B12: 207894 | C12: 125778 | D12: 133132 | E12: 255687 | F12: 722491
A13: May | B13: 103283 | C13: 35333 | D13: 233824 | E13: 122344 | F13: 494784
A14: June | B14: 235688 | C14: 155445 | D14: 244443 | E14: 118542 | F14: 754118
A15: July | B15: 102345 | C15: 65500 | D15: 122024 | E15: 219234 | F15: 509103
A16: August | B16: 98543 | C16: 119771 | D16: 113824 | E16: 229853 | F16: 561991
A17: September | B17: 199235 | C17: 15160 | D17: 158045 | E17: 107434 | F17: =SUM(B17:E17) -> 479874
A18: October | B18: 209854 | C18: 147565 | D18: 278157 | E18: 99234 | F18: =SUM(B18:E18) -> 734810
A19: November | B19: 87435 | C19: 14222 | D19: 188212 | E19: 143455 | F19: =SUM(B19:E19) -> 433324
A20: December | B20: 79235 | C20: 10420 | D20: 242483 | E20: 263567 | F20: =SUM(B20:E20) -> 595705
A21: TOTAL | B21: =SUM(B9:B20) -> 1844159 | C21: =SUM(C9:C20) -> 1111036 | D21: =SUM(D9:D20) -> 2259227 | E21: =SUM(E9:E20) -> 2084147 | F21: =SUM(F9:F16) -> 5054856

Sheet Vert
H6: Monthly Claims 2008
A8: Region | B8: January | C8: February | D8: March | E8: April | F8: May | G8: June | H8: July | I8: August | J8: September | K8: October | L8: November | M8: December | N8: TOTAL
A9: Northern Region | B9: 123456 | C9: 243568 | D9: 153623 | E9: 207894 | F9: 103283 | G9: 235688 | H9: 102345 | I9: 98543 | J9: 199235 | K9: 209854 | L9: 87435 | M9: 79235 | N9: =SUM(B9:M9) -> 1844159
A10: Southern Region | B10: 111112 | C10: 121731 | D10: 188999 | E10: 125778 | F10: 35333 | G10: 155445 | H10: 65500 | I10: 119771 | J10: 15160 | K10: 147565 | L10: 14222 | M10: 10420 | N10: =SUM(B10:M10) -> 1111036
A11: Eastern Region | B11: 137872 | C11: 270277 | D11: 136934 | E11: 133132 | F11: 233824 | G11: 244443 | H11: 122024 | I11: 113824 | J11: 158045 | K11: 278157 | L11: 188212 | M11: 242483 | N11: =SUM(B11:M11) -> 2259227
A12: Western Region | B12: 173622 | C12: 227893 | D12: 123282 | E12: 255687 | F12: 122344 | G12: 118542 | H12: 219234 | I12: 229853 | J12: 107434 | K12: 99234 | L12: 143455 | M12: 263567 | N12: =SUM(B12:M12) -> 2084147
A13: TOTAL | B13: =SUM(B9:B12) -> 546062 | C13: 863469 | D13: 602838 | E13: 722491 | F13: 494784 | G13: 754118 | H13: 509103 | I13: 561991 | J13: 479874 | K13: 734810 | L13: 433324 | M13: 595705 | N13: =SUM(B13:M13) -> 7298569

Sheet New Region
G6: Monthly Claims 2008
A8: Month | B8: Northern Region | C8: Southern Region | D8: Central Region | E8: Eastern Region | F8: Western Region | G8: TOTAL
A9: January | B9: 123456 | C9: 111112 | D9: 116253.7167 | E9: 137872 | F9: 173622 | G9: =SUM(B9:F9) -> 662315.7167
A10: February | B10: 243568 | C10: 121731 | D10: 234873.3716 | E10: 270277 | F10: 227893 | G10: 1098342.372
A11: March | B11: 153623 | C11: 188999 | D11: 151563.7277 | E11: 136934 | F11: 123282 | G11: 754401.7277
A12: April | B12: 207894 | C12: 125778 | D12: 201667.3611 | E12: 133132 | F12: 255687 | G12: 924158.3611
A13: May | B13: 103283 | C13: 35333 | D13: 99349.19595 | E13: 233824 | F13: 122344 | G13: 594133.1959
A14: June | B14: 235688 | C14: 155445 | D14: 229685.1274 | E14: 244443 | F14: 118542 | G14: 983803.1274
A15: July | B15: 102345 | C15: 65500 | D15: 96019.5336 | E15: 122024 | F15: 219234 | G15: 605122.5336
A16: August | B16: 98543 | C16: 119771 | D16: 94024.18272 | E16: 113824 | F16: 229853 | G16: 656015.1827
A17: September | B17: 199235 | C17: 15160 | D17: 197817.1743 | E17: 158045 | F17: 107434 | G17: 677691.1743
A18: October | B18: 209854 | C18: 147565 | D18: 203274.3663 | E18: 278157 | F18: 99234 | G18: 938084.3663
A19: November | B19: 87435 | C19: 14222 | D19: 86739.59148 | E19: 188212 | F19: 143455 | G19: 520063.5915
A20: December | B20: 79235 | C20: 10420 | D20: 77514.69769 | E20: 242483 | F20: 263567 | G20: 673219.6977
A21: TOTAL | B21: =SUM(B9:B20) -> 1844159 | C21: =SUM(C9:C20) -> 1111036 | D21: =SUM(D9:D20) -> 1788782.047 | E21: =SUM(E9:E20) -> 2259227 | F21: =SUM(F9:F20) -> 2084147 | G21: =SUM(G9:G16) -> 6278292.217

Sheet Insert Cut Cells
G6: Monthly Claims 2008
A8: Month | B8: Northern Region | C8: Southern Region | D8: Central Region | E8: Eastern Region | F8: Western Region | G8: TOTAL
A9: September | B9: 199235 | C9: 15160 | D9: 197817.1743 | E9: 158045 | F9: 107434 | G9: =SUM(B9:F9) -> 677691.1743
A10: October | B10: 209854 | C10: 147565 | D10: 203274.3663 | E10: 278157 | F10: 99234 | G10: =SUM(B10:F10) -> 938084.3663
A11: November | B11: 87435 | C11: 14222 | D11: 86739.59148 | E11: 188212 | F11: 143455 | G11: =SUM(B11:F11) -> 520063.5915
A12: December | B12: 79235 | C12: 10420 | D12: 77514.69769 | E12: 242483 | F12: 263567 | G12: =SUM(B12:F12) -> 673219.6977
A13: January | B13: 123456 | C13: 111112 | D13: 116253.7167 | E13: 137872 | F13: 173622 | G13: =SUM(B13:F13) -> 662315.7167
A14: February | B14: 243568 | C14: 121731 | D14: 234873.3716 | E14: 270277 | F14: 227893 | G14: 1098342.372
A15: March | B15: 153623 | C15: 188999 | D15: 151563.7277 | E15: 136934 | F15: 123282 | G15: 754401.7277
A16: April | B16: 207894 | C16: 125778 | D16: 201667.3611 | E16: 133132 | F16: 255687 | G16: 924158.3611
A17: May | B17: 103283 | C17: 35333 | D17: 99349.19595 | E17: 233824 | F17: 122344 | G17: 594133.1959
A18: June | B18: 235688 | C18: 155445 | D18: 229685.1274 | E18: 244443 | F18: 118542 | G18: 983803.1274
A19: July | B19: 102345 | C19: 65500 | D19: 96019.5336 | E19: 122024 | F19: 219234 | G19: 605122.5336
A20: August | B20: 98543 | C20: 119771 | D20: 94024.18272 | E20: 113824 | F20: 229853 | G20: 656015.1827
A21: TOTAL | B21: =SUM(B13:B20) -> 1268400 | C21: 923669 | D21: 1223436.217 | E21: 1392330 | F21: 1470457 | G21: 6278292.217

Sheet Policies
H6: Group Policy Summary
A8: Month | B8: Claims Totals | C8: Column2 | D8: Column3 | E8: Column4 | F8: Column5 | G8: Column6 | H8: Column7 | I8: Column8 | J8: Column9 | K8: Column10 | L8: Column11 | M8: Column12 | N8: Year Total
A9: Policy Number | B9: 2008-01-01 | C9: 2008-02-01 | D9: 2008-03-01 | E9: 2008-04-01 | F9: 2008-05-01 | G9: 2008-06-01 | H9: 2008-07-01 | I9: 2008-08-01 | J9: 2008-09-01 | K9: 2008-10-01 | L9: 2008-11-01 | M9: 2008-12-01
A10: 023048 | B10: 348.6213621 | C10: 6854.229372 | D10: 710.494916 | E10: 5454.401781 | F10: 5333.726872 | G10: 5305.441781 | H10: 11452.56385 | I10: 2943.407296 | J10: 10166.88964 | K10: 5272.030279 | L10: 4288.204114 | M10: 8266.432314 | N10: =SUM(B10:M10) -> 66396.44358
A11: 004578 | B11: 6520.582751 | C11: 7737.025893 | D11: 4465.125186 | E11: 5163.287478 | F11: 10340.15633 | G11: 3314.194754 | H11: 9895.512588 | I11: 6597.9548 | J11: 2217.920684 | K11: 8227.866556 | L11: 10461.27565 | M11: 7706.948005 | N11: =SUM(B11:M11) -> 82647.85067
A12: 024589 | B12: 5350.190515 | C12: 6509.878678 | D12: 1372.330865 | E12: 11875.25743 | F12: 6297.044337 | G12: 9776.262586 | H12: 8218.687038 | I12: 6724.229447 | J12: 7861.231603 | K12: 2134.406856 | L12: 2808.564941 | M12: 6795.122228 | N12: =SUM(B12:M12) -> 75723.20652
A13: 047789 | B13: 434.2320542 | C13: 8176.83565 | D13: 3086.74903 | E13: 10596.05225 | F13: 10433.01468 | G13: 1745.961378 | H13: 2490.521489 | I13: 6575.375432 | J13: 2675.953683 | K13: 644.9560599 | L13: 3737.295747 | M13: 4905.360751 | N13: =SUM(B13:M13) -> 55502.3082
A14: 014235 | B14: 7966.762978 | C14: 1578.034371 | D14: 7509.386971 | E14: 3268.269302 | F14: 3281.651195 | G14: 11255.22231 | H14: 3017.163649 | I14: 6173.027952 | J14: 1621.349079 | K14: 828.1335127 | L14: 353.0605214 | M14: 1071.212664 | N14: =SUM(B14:M14) -> 47923.27451
A15: 023487 | B15: 5048.40314 | C15: 5456.073057 | D15: 9402.328038 | E15: 2272.495569 | F15: 1027.819449 | G15: 10958.64277 | H15: 3729.50861 | I15: 2497.886657 | J15: 4838.688791 | K15: 7466.451497 | L15: 1328.984937 | M15: 5904.894418 | N15: 59932.17694
A16: 123889 | B16: 10111.90818 | C16: 8479.078254 | D16: 8611.365759 | E16: 11581.9502 | F16: 2111.753743 | G16: 2542.346527 | H16: 9404.069666 | I16: 7032.019406 | J16: 6141.421861 | K16: 12187.93139 | L16: 3163.060425 | M16: 7005.267112 | N16: 88372.17253
A17: 044512 | B17: 2652.14195 | C17: 1344.924963 | D17: 1966.891559 | E17: 11870.82841 | F17: 12179.69295 | G17: 8668.285116 | H17: 2716.951239 | I17: 8241.948427 | J17: 619.3359691 | K17: 11367.384 | L17: 5852.110054 | M17: 10206.67636 | N17: 77687.171
A18: 011347 | B18: 977.3680004 | C18: 9274.963666 | D18: 10616.99291 | E18: 6226.216456 | F18: 5495.644321 | G18: 2991.706962 | H18: 3062.908279 | I18: 11011.04369 | J18: 12213.94796 | K18: 11771.73396 | L18: 1883.011715 | M18: 2856.88188 | N18: 78382.4198
A19: 228911 | B19: 12205.77915 | C19: 5615.855097 | D19: 10806.74185 | E19: 5655.531997 | F19: 5433.576895 | G19: 10677.51281 | H19: 8032.147982 | I19: 1784.158163 | J19: 7271.15285 | K19: 9120.974098 | L19: 4375.44705 | M19: 929.3119966 | N19: 81908.18994
A20: 023158 | B20: 6426.950092 | C20: 1700.689211 | D20: 2292.568718 | E20: 646.2069382 | F20: 3677.171538 | G20: 6985.510096 | H20: 6138.485179 | I20: 8036.777275 | J20: 10213.44714 | K20: 5748.170585 | L20: 1707.14543 | M20: 3974.101543 | N20: 57547.22374
A21: 011099 | B21: 9715.083909 | C21: 12287.89795 | D21: 9679.642156 | E21: 9874.447067 | F21: 9578.478263 | G21: 3943.848446 | H21: 8879.420427 | I21: 2316.842951 | J21: 4488.452817 | K21: 12053.95063 | L21: 8252.960957 | M21: 10013.38841 | N21: 101084.414
A22: 112899 | B22: 3826.438593 | C22: 3882.251744 | D22: 8843.205937 | E22: 4659.337153 | F22: 11389.0097 | G22: 8373.123158 | H22: 5006.36685 | I22: 2.666755385 | J22: 4109.03645 | K22: 1650.810094 | L22: 6229.763836 | M22: 3299.465156 | N22: 61271.47543
A23: 112345 | B23: 1031.124136 | C23: 6378.975057 | D23: 11992.86314 | E23: 872.685469 | F23: 5822.822774 | G23: 6511.29796 | H23: 2966.101553 | I23: 10837.18859 | J23: 8393.017892 | K23: 2872.545248 | L23: 5550.713117 | M23: 642.3528739 | N23: 63871.68781
A24: 001234 | B24: 2861.406135 | C24: 7258.486746 | D24: 8177.15959 | E24: 6268.163931 | F24: 10076.80198 | G24: 9361.116061 | H24: 4914.664286 | I24: 576.7851481 | J24: 860.7715139 | K24: 12265.86975 | L24: 3205.646168 | M24: 5509.849336 | N24: 71336.72065
A25: 002234 | B25: 6704.157245 | C25: 8252.137351 | D25: 1924.757673 | E25: 5458.938267 | F25: 506.5480977 | G25: 2382.699649 | H25: 9327.083233 | I25: 3993.264506 | J25: 394.5479494 | K25: 1134.242613 | L25: 6815.530472 | M25: 3343.593324 | N25: 50237.50038
A26: 023456 | B26: 2338.865753 | C26: 10909.39382 | D26: 1510.526046 | E26: 11140.12919 | F26: 8427.636836 | G26: 9550.200955 | H26: 10167.41069 | I26: 10389.19037 | J26: 3422.442986 | K26: 11331.39379 | L26: 10397.27495 | M26: 8751.131934 | N26: 98335.59732
A27: 123456 | B27: 1585.557393 | C27: 7322.984119 | D27: 12010.86149 | E27: 4804.484917 | F27: 4865.201035 | G27: 8598.196292 | H27: 5694.614313 | I27: 6565.997045 | J27: 9330.814133 | K27: 3599.428798 | L27: 8864.060966 | M27: 11956.58304 | N27: 85198.78354
A28: 234567 | B28: 2570.885753 | C28: 5752.811152 | D28: 10247.15302 | E28: 3458.657521 | F28: 8989.342834 | G28: 7849.806998 | H28: 1038.359739 | I28: 3369.82698 | J28: 734.5985364 | K28: 7621.057657 | L28: 1281.079667 | M28: 4537.23811 | N28: 57450.81797
A29: 012345 | B29: 9719.311668 | C29: 4428.723361 | D29: 5665.957336 | E29: 9060.824628 | F29: 6207.503826 | G29: 6893.90966 | H29: 7715.605218 | I29: 3957.673875 | J29: 8863.960083 | K29: 10965.80974 | L29: 46.3128363 | M29: 682.1970914 | N29: 74207.78933
A30: 002897 | B30: 11476.46645 | C30: 3135.850848 | D30: 11370.00833 | E30: 6935.66607 | F30: 10420.30746 | G30: 398.3674645 | H30: 1610.700378 | I30: 7352.241478 | J30: 3067.38284 | K30: 5575.70331 | L30: 11516.03671 | M30: 9060.406472 | N30: 81919.13781
A31: 188197 | B31: 2100.791197 | C31: 5984.17811 | D31: 11022.04588 | E31: 9161.424486 | F31: 6598.705528 | G31: 9590.821366 | H31: 1715.465597 | I31: 11616.46305 | J31: 7747.411129 | K31: 7698.531805 | L31: 9109.690564 | M31: 4664.859599 | N31: 87010.38831
A32: Total | B32: =SUM(B10:B31) -> 111973.0284 | C32: 138321.2785 | D32: 153285.1564 | E32: 146305.2565 | F32: 148493.6106 | G32: 147674.4751 | H32: 127194.3118 | I32: 128595.9693 | J32: 117253.7756 | K32: 151539.3822 | L32: 111227.2308 | M32: 122083.2746 | N32: 1603946.75

Sheet Compatibility Report
B1: Compatibility Report for Humongous.xls
B2: Run on 6/13/2006 14:45
B4: Because some of the features in this workbook are not supported by versions of Excel earlier than Excel 2007, the features will be lost or degraded if saved in this format.
B6: Minor loss of fidelity | E6: # of occurrences
B8: This workbook contains a table with table style applied. Table style formatting will not be displayed in previous versions of Excel. | D8: Help | E8: 1
E9: 'Policies'!A8:N31
